Cogmind - Beta 15 @@@ ROGUE MODE // 2025.09.13 @ 03:41:47 Player: Grose Result: Destroyed by 4G-3W9(j) with Overtuned Pulse Rifle Performance ------------- Evolutions (0) 0 Regions Visited (3) 600 Robots Destroyed (18) 90 Value Destroyed (682) 682 Prototype IDs (0) 0 Alien Tech Used (0) 0 Bonus (800) 800 TOTAL SCORE: 2172 Bonus ------- Registered with UFD 300 Met Optimus in HQ 500 Cogmind --------- Core Integrity 0/250 Matter 144/300 Energy 65/100 System Corruption 1% Temperature Critical (614) Movement Core (850) Ox16 Location -7/Scraptown Parts ------- > --- POWER (1) -------- (None) > --- PROPULSION (2) --- (None) > --- UTILITY (2) ------ High-capacity Storage Unit Weapon Cycler > --- WEAPON (2) ------- Overtuned Pulse Rifle Assault Cannon > --- INVENTORY (20) --- Deuterium Engine Nuclear Core Light Treads Armored Treads Overtuned Huge Scrapsphere Scrap Suit Subdweller Optics Advanced Targeting Computer Weapon Cycler Improved Medium Armor Plating Improved Shield Generator Improved Hacking Suite Overtuned Pulse Rifle Overtuned Pulse Rifle Overtuned Beamcaster DRS Beacon (Ready) Peak State ------------ > --- POWER ------------ Improved Deuterium Engine > --- PROPULSION ------- Medium Treads Medium Treads > --- UTILITY ---------- High-capacity Storage Unit Weapon Cycler > --- WEAPON ----------- Overtuned Beamcaster Gauss Cannon > --- INVENTORY -------- Deuterium Engine Nuclear Core Light Treads Armored Treads Overtuned Huge Scrapsphere Scrap Suit Subdweller Optics Advanced Targeting Computer Weapon Cycler Improved Medium Armor Plating Improved Shield Generator Improved Hacking Suite Overtuned Pulse Rifle Overtuned Pulse Rifle Overtuned Pulse Rifle Assault Cannon DRS Beacon [Rating: 34] Favorites ----------- Power Deuterium Engine Engine Deuterium Engine Propulsion Light Treads Treads Light Treads Utility Improved Heat Sink Device Improved Heat Sink Storage High-capacity Storage Unit Weapon Subdweller Beam Cannon Energy Gun Subdweller Laser Energy Cannon Subdweller Beam Cannon Ballistic Gun Assault Rifle Ballistic Cannon Gauss Cannon Launcher Grenade Launcher Build | -11 -10 -10 -7 ------- Run | Yrd Mat Sub Scr Slots Evolved . | . . . . Power . | . . . . Propulsion . | . . . . Utility . | . . . . Weapon . | . . . . Parts Attached 28 | 8 . 7 13 Power 5 | 1 . 2 2 Engine 5 | 1 . 2 2 Core . | . . . . Reactor . | . . . . Propulsion 4 | 2 . . 2 Treads 4 | 2 . . 2 Leg . | . . . . Wheel . | . . . . Hover . | . . . . Flight . | . . . . Utility 6 | 2 . 2 2 Device 4 | 1 . 2 1 Storage 2 | 1 . . 1 Processor . | . . . . Hackware . | . . . . Protection . | . . . . Artifact . | . . . . Weapon 13 | 3 . 3 7 Energy Gun 6 | 1 . 1 4 Energy Cannon 1 | . . 1 . Ballistic Gun 2 | 2 . . . Ballistic Cannon 2 | . . . 2 Launcher 2 | . . 1 1 Special Weapon . | . . . . Impact Weapon . | . . . . Slashing Weapon . | . . . . Piercing Weapon . | . . . . Special Melee Weapon . | . . . . Unidentified Prototypes . | . . . . Parts Lost 7 | . . 1 6 Power 1 | . . . 1 Propulsion 2 | . . . 2 Utility 2 | . . 1 1 Weapon 2 | . . . 2 Highest Loss Streak 5 | . . 1 5 To Critical Strikes . | . . . . Average Backups 12 | 1 3 6 13 Power 1 | . . 1 1 Propulsion 1 | . . . 1 Utility 6 | . . 2 6 Weapon 3 | 1 1 2 4 Tool/Special . | . . . . Unused Backups 15 | . . . 15 Power 1 | . . . 1 Propulsion 2 | . . . 2 Utility 8 | . . . 8 Weapon 4 | . . . 4 Tool/Special . | . . . . Average Slot Usage (%) 99 | . 100 97 99 Engine 13 | . 14 14 13 Treads 27 | . 28 28 27 Device 13 | . 14 11 14 Storage 14 | . 14 14 14 Energy Gun 11 | . . 6 12 Energy Cannon 11 | . . 2 13 Ballistic Gun 2 | . 28 19 . Ballistic Cannon 1 | . . . 2 Peak Build Rating 34 | 7 7 11 34 Average Rating 18 | 4 7 8 20 On Entrance 6 | . 7 7 11 Naked Turns . | . . . . Heaviest Build 66 | 13 13 23 66 Greatest Support 56 | 40 40 40 56 Greatest Overweight (x) 1 | 1 . . 1 Average Overweight (x) . | . . . . Largest Inventory Capacity 20 | 8 8 8 20 Average Capacity 16 | 7 8 8 17 Most Carried 20 | 6 4 8 20 Average Carried 13 | 1 3 6 14 Final Capacity 20 | 8 8 8 20 Final Carried 18 | 1 4 8 18 Class Distribution -------------------- 88% | Mutant 11% | Derelict-Mutant Dominant Class ---------------- Mutant | -10/Materials Mutant | -10/Subcaves Mutant | -7/Scraptown Resources | -11 -10 -10 -7 ----------- Run | Yrd Mat Sub Scr Matter Collected 721 | 302 . 32 387 Remotely . | . . . . Salvage Created 749 | 67 . 53 629 Parts 38 | 8 . 6 24 Haulers Intercepted . | . . . . Recyclers Shooed . | . . . . Parts Field Recycled . | . . . . Retrieved Matter . | . . . . Parts Self-Destructed 9 | . . 8 1 Prevented . | . . . . Kills | -11 -10 -10 -7 ------- Run | Yrd Mat Sub Scr Combat Hostiles Destroyed 15 | . . 2 13 Guns 4 | . . 1 3 Cannons 8 | . . . 8 AOE 2 | . . 1 1 Classes Destroyed 7 | 1 . 1 5 Tunneler 3 | 3 . . . Subdweller 2 | . . 2 . Federalist 1 | . . . 1 Explorer 1 | . . . 1 Ranger 3 | . . . 3 Guru 2 | . . . 2 Scrapper 6 | . . . 6 Best Kill Streak 4 | 2 . 2 4 Combat Bots Only 4 | . . 2 4 Max Kills in Single Turn 1 | 1 . 1 1 Gunslinging . | . . . . Exploded 1 | . . 1 1 Melee . | . . . . Uniques/NPCs Destroyed . | . . . . Combat | -11 -10 -10 -7 -------- Run | Yrd Mat Sub Scr Hostile Shots Fired 120 | . . 19 101 Missed 24 | . . 6 18 Hits 96 | . . 13 83 Melee 2 | . . . 2 Projectile 94 | . . 13 81 Critical Strikes 3 | . . . 3 Damage Taken 1432 | . . 319 1113 Core 265 | . . 19 246 Absorbed by Shields . | . . . . Core Remaining (%) 100 | 100 . . . Volleys Fired 58 | 5 . 11 42 Largest 2 | 2 . 2 2 Hottest 140 | 40 . 50 140 Shots Fired 99 | 7 . 22 70 Gun 43 | 7 . 18 18 Cannon 49 | . . . 49 Launcher 7 | . . 4 3 Special . | . . . . Kinetic 56 | 4 . 18 34 Thermal 33 | . . . 33 Explosive 7 | . . 4 3 Electromagnetic 3 | 3 . . . Robot Hit Streak 10 | 2 . 9 10 Robot Miss Streak 5 | 2 . 2 5 Penetration Max 1 | . . . 1 Secondary Targets . | . . . . Shots Hit Robots 66 | 4 . 18 44 Core Hits 24 | 3 . 3 18 Critical Kills . | . . . . Critical Parts Destroyed . | . . . . Critical Strikes 4 | . . . 4 Blast 4 | . . . 4 Melee Attacks . | . . . . Impact . | . . . . Slashing . | . . . . Piercing . | . . . . Sneak Attacks . | . . . . Combat Hostiles . | . . . . Follow-up Attacks . | . . . . Damage Inflicted 1718 | 51 1 338 1328 Guns 386 | 51 . 154 181 Cannons 977 | . . . 977 Explosions 354 | . . 184 170 Melee . | . . . . Ramming 1 | . 1 . . Kinetic 889 | 21 . 154 714 Thermal 444 | . . . 444 Explosive 354 | . . 184 170 Electromagnetic 30 | 30 . . . Impact . | . . . . Slashing . | . . . . Piercing . | . . . . Highest Corruption 1 | . . . 1 Average Corruption 1 | . . . 1 Corruption Purged . | . . . . Corruption Blocked . | . . . . Effects 1 | . . . 1 Weapon Failures 1 | . . . 1 Overload Shots . | . . . . Overflow Damage 30 | . . . 30 Projectiles 29 | . . . 29 Explosions 1 | . . . 1 Melee . | . . . . Knockbacks 6 | . . . 6 Impact . | . . . . Kinetic 5 | . . . 5 Secondary 1 | . . . 1 Self-Inflicted Damage 28 | . . . 28 Shots 1 | . . . 1 Rammed 1 | . 1 . . Targets Rammed 1 | . 1 . . Kicked . | . . . . Crushed . | . . . . Highest Temperature 609 | . . . 609 Average Temperature 169 | . . . 169 Received Heat Transfer 489 | . . 78 411 Effects 11 | . . . 11 Shutdowns 1 | . . . 1 Energy Bleed 1 | . . . 1 Interference 1 | . . . 1 Matter Decay 1 | . . . 1 Damage (minor) 2 | . . . 2 Damage (major) 4 | . . . 4 Damage (core) 1 | . . . 1 Siege Activations . | . . . . Martial Activations . | . . . . Shielding Activations . | . . . . Robots Disrupted . | . . . . Combat Hostiles . | . . . . Robots Corrupted 1 | . . . 1 Combat Hostiles 1 | . . . 1 Parts Fried . | . . . . Impact Corruptions 1 | . . . 1 Robots Melted . | . . . . Combat Hostiles . | . . . . Parts Melted 2 | . . . 2 Heat Transferred 453 | . . . 453 Parts Sabotaged . | . . . . Parts Stolen . | . . . . Parts Stripped . | . . . . Power Chain Reactions . | . . . . Alert | -11 -10 -10 -7 ------- Run | Yrd Mat Sub Scr Maximum Alert Level . | . . . . Low Security (%) 100 | 100 100 . . Level 1 . | . . . . Level 2 . | . . . . Level 3 . | . . . . Level 4 . | . . . . Level 5 . | . . . . High Security . | . . . . Max Security . | . . . . Peak Influence 5 | 5 3 . . Initial 3 | . 3 . . Average . | 1 . . . Influence Increases 15 | 15 . . . Destroy 0b10 Robot/NC 15 | 15 . . . Influence Decreases 15 | 10 5 . . Entered New Map 2 | . 2 . . Time Decay 13 | 10 3 . . Squads Dispatched . | . . . . Investigation . | . . . . Extermination . | . . . . Reinforcement . | . . . . Assault . | . . . . Garrison . | . . . . Intercept . | . . . . Searches Triggered . | . . . . Construction Impeded . | . . . . Haulers Reinforced . | . . . . Active Scanning Responses . | . . . . Cargo Convoy Interrupts . | . . . . Stealth | -11 -10 -10 -7 --------- Run | Yrd Mat Sub Scr Distress Signals . | . . . . Communications Jammed . | . . . . Distress Signals . | . . . . Times Spotted 30 | . 1 3 26 Peak Tracking Total 5 | . 1 2 5 Tactical Retreats . | . . . . Traps | -11 -10 -10 -7 ------- Run | Yrd Mat Sub Scr Traps Triggered 1 | . . 1 . Indirectly . | . . . . Trap Hack Attempts . | . . . . Triggered . | . . . . Disarmed . | . . . . Reprogrammed . | . . . . Reused . | . . . . Traps Extracted . | . . . . Installed . | . . . . Triggered . | . . . . Machines | -11 -10 -10 -7 ---------- Run | Yrd Mat Sub Scr Machines Disabled 1 | . . . 1 Max in Single Turn 1 | . . . 1 Machines Repaired . | . . . . Machines Dismantled . | . . . . Machines Sabotaged . | . . . . Overloaded Fab Kills . | . . . . Hacking | -11 -10 -10 -7 --------- Run | Yrd Mat Sub Scr Machines Accessed 13 | . 2 . 11 Terminals 2 | . 2 . . Fabricators . | . . . . Repair Stations . | . . . . Recycling Units . | . . . . Scanalyzers . | . . . . Garrison Access . | . . . . Total Hacks 80 | . 6 . 74 Successful 76 | . 2 . 74 Failed 4 | . 4 . . Catastrophic 1 | . 1 . . Database Lockouts . | . . . . Manual 6 | . 6 . . Terminals 6 | . 6 . . Fabricators . | . . . . Repair Stations . | . . . . Recycling Units . | . . . . Scanalyzers . | . . . . Garrison Access . | . . . . Terminal Hacks 75 | . 1 . 74 Record 66 | . . . 66 Robot Analysis 8 | . . . 8 Terminal Index 1 | . 1 . . Fabricator Hacks . | . . . . Repair Station Hacks . | . . . . Recycling Unit Hacks . | . . . . Scanalyzer . | . . . . Garrison Access Hacks . | . . . . Unauthorized Hacks 1 | . 1 . . Terminals 1 | . 1 . . Botnet 1 | . 1 . . Fabricators . | . . . . Repair Stations . | . . . . Recycling Units . | . . . . Scanalyzers . | . . . . Garrison Access . | . . . . Data Cores Recovered . | . . . . Used . | . . . . Hacking Detections 2 | . 2 . . Full Trace Events . | . . . . Feedback Events . | . . . . Feedback Blocked . | . . . . Robot Schematics Acquired . | . . . . Robots Built . | . . . . Authchips . | . . . . Time . | . . . . Total Robot Build Rating . | . . . . Part Schematics Acquired . | . . . . Parts Built . | . . . . Authchips . | . . . . Time . | . . . . Total Part Build Rating . | . . . . Parts Repaired . | . . . . Time . | . . . . Parts Recycled . | . . . . Recycled Matter . | . . . . Retrieved Matter . | . . . . Retrieved Components . | . . . . Parts Scanalyzed . | . . . . Part Schematics Acquired . | . . . . Parts Damaged . | . . . . Bothacking | -11 -10 -10 -7 ------------ Run | Yrd Mat Sub Scr Used RIF Installer . | . . . . Robots Hacked . | . . . . Non-combat . | . . . . Combat . | . . . . Robot Hacks Applied . | . . . . Relay Couplers Released . | . . . . Fabnet Peak Effective % . | . . . . Robots Rewired . | . . . . Allies Hacked . | . . . . Hacks Repelled . | . . . . Allies | -11 -10 -10 -7 -------- Run | Yrd Mat Sub Scr Total Allies . | . . . . Largest Group . | . . . . Highest-Rated Group . | . . . . Highest-Rated Ally . | . . . . Total Orders . | . . . . Ally Attacks . | . . . . Total Damage . | . . . . Kills . | . . . . Allies Corrupted . | . . . . Allies Melted 8 | . . . 8 Intel | -11 -10 -10 -7 ------- Run | Yrd Mat Sub Scr Active Infowar (turns) 426 | 7 165 254 . Optics 79 | . . 79 . Seismic 347 | 7 165 175 . Robot Analysis Total 8 | . . . 8 Derelict Logs Recovered 2 | . . . 2 Drone Launches . | . . . . Drone Recoveries . | . . . . Exploration | -11 -10 -10 -7 ------------- Run | Yrd Mat Sub Scr Turns Passed 4451 | 75 165 366 3845 Spaces Moved 1995 | 36 99 186 1674 Core 12 | 12 . . . Treads 1983 | 24 99 186 1674 Legs . | . . . . Wheels . | . . . . Hover . | . . . . Flight . | . . . . Fastest Speed 50 | 50 160 160 160 Average Speed 206 | 124 160 160 216 Slowest Speed 240 | 160 160 160 240 Overloaded Moves . | . . . . Propulsion Burnouts . | . . . . Robots Hopped . | . . . . Potential Cave-ins . | . . . . Cave-ins Triggered . | . . . . Exploration Rate (%) 32 | 3 21 18 86 Regions Visited 3 Branch Regions 2 Pre-discovered Areas . | . . . . Known Exits Taken . | . . . . Unknown Exits Taken 3 | 1 1 1 . Scrap Searched 4 | . . . 4 Spaces Dug . | . . . . Terrain Destroyed 32 | . . 14 18 Melee . | . . . . Projectile 6 | . . . 6 AOE 26 | . . 14 12 Terrain Rammed . | . . . . Walls Destroyed . | . . . . Machines Disabled . | . . . . Actions | -11 -10 -10 -7 --------- Run | Yrd Mat Sub Scr Total 2226 | 58 105 229 1834 Wait 85 | 2 3 19 61 Move 1992 | 35 98 185 1674 Hop . | . . . . Pick Up 40 | 7 3 5 25 Fast Attach 2 | 1 . . 1 Attach 9 | 6 . 1 2 Detach . | . . . . Swap 22 | 2 . 8 12 Drop 17 | . . . 17 Fire 58 | 5 . 11 42 Melee . | . . . . Ram . | . . . . Kick . | . . . . Crush 1 | . 1 . . Escape Stasis . | . . . . Rewire . | . . . . Trap . | . . . . Miscellaneous . | . . . . Route ------- -11/Scrapyard -10/Materials (discovered 2 exits: [*Mat] / [*Sub]) -10/Subcaves (discovered 2 exits: [*Mat] / *Scr) -7/Scraptown (discovered 2 exits: [*Fac x2]) History --------- Turn | Location | Event 33 | -11/Scrapyard | Discovered new exit (range 14) 76 | -11/Scrapyard | Entered Materials 77 | -10/Materials | Met a group of wandering Federalists 191 | -10/Materials | Discovered new exit (range 8) 226 | -10/Materials | Discovered new exit (range 10) 241 | -10/Materials | Entered Subcaves 242 | -10/Subcaves | Continued accompanying wandering Federalists (4) 242 | -10/Subcaves | Approached by a straggling Scientist 300 | -10/Subcaves | Build established: Mutant 528 | -10/Subcaves | Discovered new exit (range 8) 598 | -10/Subcaves | Scientist uncovered a shortcut to Scraptown 607 | -10/Subcaves | Entered Scraptown 1024 | -7/Scraptown | Visited Science Testing Area 1062 | -7/Scraptown | Visited UFD Registry 1067 | -7/Scraptown | Registered with UFD as "Wavebomber" 1119 | -7/Scraptown | Visited Symbiants 1172 | -7/Scraptown | Visited Red Mages 1276 | -7/Scraptown | Visited Assassins FH 1986 | -7/Scraptown | Discovered new exit (range 5) 2050 | -7/Scraptown | Scanned Subdweller tech in exchange for log data 2058 | -7/Scraptown | Learned Factory security intel 2178 | -7/Scraptown | Visited Fellowship of the Rings 2228 | -7/Scraptown | Visited Cyclists 2264 | -7/Scraptown | Entered Cyclist Reading Room 2475 | -7/Scraptown | Visited Modified Component R&D 2656 | -7/Scraptown | Visited DA-N13 Charitable Foundation 2687 | -7/Scraptown | Found DCF Scrap (28 items) 2826 | -7/Scraptown | Visited Analyses Database 2941 | -7/Scraptown | Discovered new exit (range 5) 3021 | -7/Scraptown | Found Scrap Suit 3207 | -7/Scraptown | Visited Chapter 10 3284 | -7/Scraptown | Visited Derelict Rescue Squad 3351 | -7/Scraptown | Found DRS Beacon 3446 | -7/Scraptown | Met Optimus 3446 | -7/Scraptown | Accepted into 0bPrime 3567 | -7/Scraptown | Visited Scrap Suit Storage 3606 | -7/Scraptown | Civil war broke out across Scraptown 3685 | -7/Scraptown | Lost 7 allies 3687 | -7/Scraptown | Visited Observation Area 3906 | -7/Scraptown | Optimus destroyed in the chaos of civil war 4184 | -7/Scraptown | Build established: Derelict-Mutant 4410 | -7/Scraptown | Core integrity fell below 50% 4422 | -7/Scraptown | Lost 3 allies 4447 | -7/Scraptown | Core integrity fell below 20% 4452 | -7/Scraptown | Destroyed by 4G-3W9(j) with Overtuned Pulse Rifle Last Messages --------------- 04444_ Overheating: Hcp. Storage Unit damaged (-172). 04444_ Overheating: Med. Treads damaged (-16). 04444_ Critical hit (Burn: +50). 04444_ Penetrated by Bolt. 04445_ 4G-3W9(j) knocked back. 04445_ Destroyed Mak. Targeting Computer. 04445_ DX-GPX(h) system corrupted by crushing effect. 04446_ Overheating: Matter decay (-44). 04446_ DX-GPX(h) system terminally corrupted. 04447_ Overheating: Core damaged (-25). 04447_ Med. Treads destroyed. 04449_ Overheating: Energy bleed (-19). 04449_ Med. Treads destroyed. 04449_ Ovr. Pulse Rifle suddenly begins malfunctioning. 04451_ Overheating: System interference. 04451_ Weapon Cycler temporarily disabled. 04451_ 4G-3W9(j) knocked back. Map ----- +----------------------------------------------------+ | ???????????????????????????"""##"""##""|##"""#??## | | ???????????????????????????"" ##""!##"" ## !"#### | | ??????????????????????????#"" | | ??????????????????????????# [* | | ??????????????????????????####################### | | ???????????##############???????????????????????## | | ???????????#""""""""""""#????????????????????????# | | ???????????#" " #"""""""#????????????????????????# | | #??????????# # " "#????????????????????????# | | #??????????####+# ="#????????????????????????# | | #??????????#""" "#????????????????????????# | | #??????????#"= "#?##########????########## | | #??????????#"" """""#?# ##**=#????#""""""""# | | #??????????#" "#####?# !]##[=!#????#" X " ""# | | ######?????#X """""#?# !]!=[%*#????#" ""# | | "#?????## #?# !=!][|#????#"" """# | | X#?????#" #?# !!%[!=#????# # | | "#?????#" #?# !=*[=#????# =! # | | #?????######### ####?######[%##??###"!=*##### | | ########???????##### ###########!######"##!!= =*# | | #???????#""""=""% " """"!%"" " [[=[!%[!% | | #???????#" %!%==* [*%*=[!%! %! ! !%*=%[[% | | #???????# %![!!= [=!![!= !=[ %![ %!**= | | #???????#" !%[=[ % ! !== ]%*= | | #???????#" %j[*%! =!=[%= [ | | #???##### !%!%*[@ !!!!!% | | #???#"""" [=""!""""""""""""""""""""""=%! | | #???#"""" %"""""""""""""""""""""""""" ! | | #???#"""" ""###### ################"" | | #???#"""" "# ##????????#"= | | #???#"""" % ! ""# X"#????????# * | | ###?#"""" *=%[""# "" "" ##????????#"" | | ""#"#""""=%% ! ""# "" "" X"#??????###"" | | """"#""""!!= "# " " ######### #"" | | ""#######!%= ! "" "" % | | ###?????#==!=!%"" =* "" * / | | !=[ #########!%!=*%""# "%[ " ######### #"" | | %[! ==!/=!!%%!*!=!= "# "" "" ""#??????###"" | | !%* %!!=!%==![%[!!!""# "" "" ##????????#"" | | !! !!%[ =*[[!=[=!!""# X"#????????#"" | | =%== =[!/%=%*[""# ##????????#"" | | =!=*! =!% !=!""###### ######????#?####"" | | ==!%*=%* % ![[""""?""""""????????"""""""" | | *!=!%!! ! [%*"""""""""""""????"" "" """"" | | %%=![= % *!%!!%== ?? | | =!!%[=*= =%= =!!!=[[ ? [ | | ![!*%!! ! !==*%=! !%! | | %!%%#""""# [!==!=[ ! % = | | %= #????# =%!*=%* [! ?[ | | ! #????# """!*%"" """""" "???""""""" " | +----------------------------------------------------+ Best States ------------- Heat Dissipation 39 Energy Generation 16 Energy Capacity 290 Matter Stores 300 Matter Capacity 300 Sight Range 21 Terrain Scan Density 10 Weapon Cycling 15 Evasion (%) 50 Recoil Reduction 2 Item Schematics ----------------- None Robot Schematics ------------------ None Fabricated ------------ Nothing Repaired ---------- Nothing Alien Tech Used ----------------- None Achievements -------------- Armchair Analyst Please Form A Line Challenges ------------ None Game ------ Seed MiningBiometalReactor Manual? 0 Play Time 01:18:48 Cumulative 10.8 hours Start 2025.09.13 @ 01:54:05 End 2025.09.13 @ 03:41:47 Sessions 1 Manual Loads 0 Difficulty Rogue Special Mode None Game No. 7 Rogue 7 Adventurer 0 Explorer 0 Win Type - Total 0 Types 0/0/0/0/0/0/0/0/0/0 Lore% 17 Gallery% 10 Achievement% 14 Wizard Run 0 Options --------- Layout 1 ASCII 0 Keyboard 0 Movement Numpad Keybinds 0 Fullscreen 1 Font 24/Tamsyn Map View 50x35 Zoom Use 1% Tactical HUD 1 Map Filters NONE Filters NONE Steam 1 RUN: a232bba2-6a3a-4760-9bb3-92a05d6818a1